bitfinex/quotes_ETHUSD_20230103
["timestamp","ask_amount","ask_price","bid_price","bid_amount"]
[1672715252399,4.9,1215.5,1215.4,24.68122]
[1672715253304,4.9,1215.5,1215.4,16.45348]
[1672715257275,4.9,1215.5,1215.4,24.68122]
[1672715257486,4.9,1215.5,1215.4,16.45348]
[1672715259486,4.9,1215.5,1215.4,24.68122]
[1672715259922,4.9,1215.5,1215.4,16.45348]
[1672715260851,6.95866092,1215.6,1215.4,16.45348]
[1672715261063,11.04152206,1215.6,1215.4,16.45348]
[1672715261955,5.0,1215.5,1215.4,16.45348]
[1672715263657,5.0,1215.5,1215.4,24.68122]
[1672715264883,5.0,1215.5,1215.4,24.67724193]
[1672715265721,5.0,1215.5,1215.4,16.44950193]
[1672715265954,10.06566092,1215.5,1215.4,8.22176193]
[1672715266138,5.0,1215.5,1215.4,8.22176193]
[1672715266671,5.23,1215.5,1215.4,8.22176193]
[1672715269401,0.23,1215.5,1215.4,16.44950193]
[1672715269624,0.23,1215.5,1215.4,8.22176193]
[1672715270504,5.23,1215.5,1215.4,8.22176193]
[1672715271035,5.23,1215.5,1215.4,16.44950193]
[1672715272824,5.23,1215.5,1215.4,8.22176193]
[1672715273202,5.23,1215.5,1215.4,16.44950193]
[1672715274443,5.23,1215.5,1215.4,8.22176193]
[1672715276406,0.23,1215.5,1215.4,8.22176193]
[1672715276825,5.29566092,1215.5,1215.4,8.22176193]
[1672715277622,5.23,1215.5,1215.4,8.22176193]
[1672715277773,10.29566092,1215.5,1215.4,8.22176193]
[1672715278163,10.29566092,1215.5,1215.4,16.44950193]
[1672715283512,5.29566092,1215.5,1215.4,16.44950193]
[1672715284158,5.29566092,1215.5,1215.4,8.22176193]
[1672715284375,10.29566092,1215.5,1215.4,8.22176193]
[1672715286511,10.29566092,1215.5,1215.4,8.21922622]
[1672715287042,10.29566092,1215.5,1215.4,16.44696622]
[1672715288997,10.29566092,1215.5,1215.4,24.67470622]
[1672715290693,5.29566092,1215.5,1215.4,24.67470622]
[1672715291322,10.29566092,1215.5,1215.4,24.67470622]
[1672715297434,5.29566092,1215.5,1215.4,24.67470622]
[1672715297997,5.06566092,1215.5,1215.4,24.67470622]
[1672715298366,10.06566092,1215.5,1215.4,24.67470622]
[1672715303442,5.0,1215.5,1215.4,24.67470622]
[1672715303812,10.10538565,1215.5,1215.4,24.67470622]
[1672715304087,10.1053925,1215.5,1215.4,24.67470622]
[1672715304585,5.1053925,1215.5,1215.4,24.67470622]
[1672715305419,10.1053925,1215.5,1215.4,24.67470622]
[1672715307791,10.1053925,1215.5,1215.4,24.67269494]
[1672715314303,10.10304091,1215.5,1215.4,24.67269494]
[1672715317200,5.10304091,1215.5,1215.4,24.67269494]
[1672715318111,10.10304091,1215.5,1215.4,24.67269494]
[1672715324162,5.10304091,1215.5,1215.4,24.67269494]
[1672715325114,10.10304091,1215.5,1215.4,24.67269494]
[1672715325472,10.10504091,1215.5,1215.4,24.66969494]
[1672715325740,10.10304091,1215.5,1215.4,24.67269494]
[1672715326629,5.0,1215.5,1215.4,24.67269494]
[1672715327631,10.10469559,1215.5,1215.4,24.67269494]
[1672715331536,5.0,1215.5,1215.4,24.67269494]
[1672715332410,10.10471204,1215.5,1215.4,24.67269494]
[1672715332657,10.10466601,1215.5,1215.4,24.67269494]
[1672715332865,5.10466601,1215.5,1215.4,24.67269494]
[1672715333932,10.10466601,1215.5,1215.4,24.67269494]
[1672715334514,5.0,1215.5,1215.4,16.44495494]
[1672715334779,10.10484843,1215.5,1215.4,16.44495494]
[1672715336407,10.10484843,1215.5,1215.4,16.44205039]
[1672715338558,10.10484843,1215.5,1215.4,24.66979039]
[1672715339874,5.10484843,1215.5,1215.4,24.66979039]
[1672715340258,10.9530399,1215.6,1215.4,24.66979039]
[1672715340453,10.8870399,1215.6,1215.4,24.66979039]
[1672715340664,5.10485092,1215.5,1215.4,24.66979039]
[1672715340870,10.10485092,1215.5,1215.4,24.66979039]
[1672715346878,5.10485092,1215.5,1215.4,24.66979039]
[1672715347091,10.9530399,1215.6,1215.4,24.66979039]
[1672715347311,5.10392139,1215.5,1215.4,24.66979039]
[1672715347744,10.10392139,1215.5,1215.4,24.66979039]
[1672715349972,10.10392139,1215.5,1215.4,24.98430819]
[1672715358207,10.10392139,1215.5,1215.4,24.98158266]
[1672715364154,5.10392139,1215.5,1215.4,24.98158266]
[1672715365243,10.10392139,1215.5,1215.4,24.98158266]
[1672715371365,5.10392139,1215.5,1215.4,24.98158266]
[1672715372256,10.10392139,1215.5,1215.4,24.98158266]
[1672715378242,5.10392139,1215.5,1215.4,24.98158266]
[1672715379237,10.10392139,1215.5,1215.4,24.98158266]
[1672715380607,10.10392139,1215.5,1215.4,24.97792615]
[1672715384769,10.10392139,1215.5,1215.4,24.47313615]
[1672715385145,5.10392139,1215.5,1215.4,24.47313615]
[1672715386359,10.10392139,1215.5,1215.4,24.47313615]
[1672715392248,5.10392139,1215.5,1215.4,24.47313615]
[1672715393341,10.10392139,1215.5,1215.4,24.47313615]
[1672715399313,5.10392139,1215.5,1215.4,24.47313615]
[1672715400364,10.10392139,1215.5,1215.4,24.47313615]
[1672715406260,5.10392139,1215.5,1215.4,24.47313615]
[1672715406483,5.10392139,1215.5,1215.4,24.46981718]
[1672715407309,10.10392139,1215.5,1215.4,24.46981718]
[1672715413237,5.10392139,1215.5,1215.4,24.46981718]
[1672715414260,10.10392139,1215.5,1215.4,24.46981718]
[1672715420195,5.10392139,1215.5,1215.4,24.46981718]
[1672715421520,10.10392139,1215.5,1215.4,24.46981718]
[1672715427351,5.10392139,1215.5,1215.4,24.46593621]
[1672715428456,10.10392139,1215.5,1215.4,24.46593621]
[1672715430306,10.10392139,1215.5,1215.4,27.73530783]
[1672715430463,10.10392139,1215.5,1215.4,24.46593621]
[1672715441003,5.10392139,1215.5,1215.4,24.46593621]
[1672715441930,10.10392139,1215.5,1215.4,24.46593621]
[1672715442821,5.0,1215.5,1215.4,24.46593621]
[1672715442991,9.31980494,1215.5,1215.4,24.46593621]
[1672715443195,9.31980494,1215.5,1215.4,27.91910783]
[1672715444298,10.10392139,1215.5,1215.4,27.91910783]
[1672715445600,5.0,1215.5,1215.4,27.91910783]
[1672715446303,10.10392139,1215.5,1215.4,27.91910783]
[1672715448652,5.0,1215.5,1215.4,27.91557725]
[1672715449409,5.16992139,1215.6,1215.4,27.91557725]
[1672715449638,5.10392139,1215.6,1215.4,27.91557725]
[1672715450441,5.0,1215.5,1215.4,27.91557725]
[1672715451194,10.10392139,1215.5,1215.4,27.91557725]
[1672715451649,5.0,1215.5,1215.4,27.91557725]
[1672715451861,9.32061383,1215.5,1215.4,27.91557725]
[1672715453532,9.32061383,1215.5,1215.4,24.46240563]
[1672715462719,9.32061383,1215.5,1215.4,26.30040563]
[1672715462935,4.38661383,1215.6,1215.5,29.68118]
[1672715463089,4.38661383,1215.7,1215.5,31.61718]
[1672715463292,4.32061383,1215.7,1215.5,31.61718]
[1672715463505,4.32061383,1215.7,1215.5,36.62410741]
[1672715464040,4.32061383,1215.7,1215.5,31.62410741]
[1672715464237,4.32061383,1215.7,1215.6,0.96682086]
[1672715464448,4.32061383,1215.7,1215.6,25.64599086]
[1672715464662,4.32061383,1215.7,1215.6,25.74399086]
[1672715464925,9.32061383,1215.7,1215.6,25.74399086]
[1672715470046,9.32061383,1215.7,1215.6,29.82558869]
[1672715470649,4.32061383,1215.7,1215.6,29.82558869]
[1672715471890,9.32061383,1215.7,1215.6,29.82558869]
[1672715476077,5.0,1215.7,1215.6,29.82558869]
[1672715476683,10.10392139,1215.7,1215.6,29.82558869]
[1672715476854,5.0,1215.7,1215.6,29.82558869]
[1672715478238,9.31426806,1215.7,1215.6,29.82558869]
[1672715478642,5.0,1215.7,1215.6,29.82558869]
[1672715479320,9.3143778,1215.7,1215.6,29.82558869]
[1672715479538,5.0,1215.7,1215.6,29.82558869]
[1672715480401,9.31436913,1215.7,1215.6,29.82558869]
[1672715482837,5.0,1215.7,1215.6,29.82558869]
[1672715483028,9.3147348,1215.7,1215.6,4.46641869]
[1672715483345,5.0,1215.7,1215.6,24.96599086]
[1672715483656,5.0,1215.7,1215.6,25.06399086]
[1672715483870,4.31497301,1215.7,1215.6,25.06082036]
[1672715484917,9.31497301,1215.7,1215.6,25.06082036]
[1672715485804,9.315575,1215.7,1215.6,25.06082036]
[1672715486295,5.0,1215.7,1215.6,25.06082036]
[1672715486614,10.10392139,1215.7,1215.6,25.06082036]
[1672715486770,5.0,1215.7,1215.6,25.06082036]
[1672715486967,10.10392139,1215.7,1215.6,25.06082036]
[1672715487417,5.0,1215.7,1215.6,25.06082036]
[1672715488084,9.31605329,1215.7,1215.6,25.06082036]
[1672715489364,5.0,1215.7,1215.6,25.06082036]
[1672715490658,10.10392139,1215.7,1215.6,25.06082036]
[1672715490864,5.78762139,1215.8,1215.6,25.06082036]
[1672715491075,5.10392139,1215.7,1215.6,25.06082036]
[1672715491954,10.10392139,1215.7,1215.6,25.06082036]
[1672715497812,5.0,1215.7,1215.6,25.06082036]
[1672715499615,6.80407876,1215.8,1215.6,25.06082036]
[1672715499825,6.73807876,1215.8,1215.6,25.06082036]
[1672715500078,11.73807876,1215.8,1215.6,25.06082036]
[1672715500388,6.12037876,1215.7,1215.6,25.06082036]
[1672715500605,6.12037876,1215.7,1215.6,0.38165036]
[1672715500606,10.2692399,1215.7,1215.6,0.38165036]
[1672715500755,11.21686114,1215.7,1215.6,0.28365036]
[1672715500966,17.336514,1215.7,1215.6,0.28365036]
[1672715501409,11.21686114,1215.7,1215.6,0.28365036]
[1672715501596,19.44257114,1215.7,1215.6,0.28365036]
[1672715502173,11.21686114,1215.7,1215.6,0.28365036]
[1672715504913,17.33133265,1215.7,1215.6,0.28365036]
[1672715506916,17.33133265,1215.7,1215.6,0.28007871]
[1672715508327,12.33133265,1215.7,1215.6,0.28007871]
[1672715509372,17.33133265,1215.7,1215.6,0.28007871]
[1672715515402,12.33133265,1215.7,1215.6,0.28007871]
[1672715516405,17.33133265,1215.7,1215.6,0.28007871]
[1672715517512,11.21686114,1215.7,1215.6,0.28007871]
[1672715517997,17.3281943,1215.7,1215.6,0.28007871]
[1672715522419,12.3281943,1215.7,1215.6,0.28007871]
[1672715523367,17.3281943,1215.7,1215.6,0.28007871]
[1672715526345,11.21686114,1215.7,1215.6,0.28007871]
[1672715528744,24.37757114,1215.7,1215.6,0.28007871]
[1672715529540,32.60328114,1215.7,1215.6,0.28007871]
[1672715529750,27.37757114,1215.7,1215.6,0.28007871]
[1672715530004,46.26979114,1215.7,1215.6,0.28007871]
[1672715530317,46.7642196,1215.7,1215.6,0.28007871]
[1672715531050,46.7642196,1215.7,1215.6,0.27658681]
[1672715531581,38.5385096,1215.7,1215.6,0.27658681]
[1672715540884,49.5385096,1215.7,1215.6,0.27658681]
[1672715541330,47.7005096,1215.7,1215.6,0.27658681]
[1672715544148,82.7005096,1215.7,1215.6,0.27658681]
[1672715547133,77.7005096,1215.7,1215.6,0.27658681]
[1672715547959,77.20608114,1215.7,1215.6,0.27658681]
[1672715548921,82.20608114,1215.7,1215.6,0.27658681]
[1672715552962,65.75466114,1215.7,1215.6,0.27658681]
[1672715553188,63.93166114,1215.7,1215.6,0.27658681]
[1672715554064,28.93166114,1215.7,1215.6,0.27658681]
[1672715554593,63.93166114,1215.7,1215.6,0.27658681]
[1672715554806,63.93166114,1215.7,1215.6,0.27421624]
[1672715560561,58.93166114,1215.7,1215.6,0.27421624]
[1672715561691,63.93166114,1215.7,1215.6,0.27421624]
[1672715564633,28.93166114,1215.7,1215.6,0.27421624]
[1672715567698,23.93166114,1215.7,1215.6,0.27421624]
[1672715568793,28.93166114,1215.7,1215.6,0.27421624]
[1672715574630,23.31386114,1215.7,1215.6,0.27421624]
[1672715575873,28.31386114,1215.7,1215.6,0.27421624]
[1672715578007,28.31386114,1215.7,1215.6,0.2720044]
[1672715584456,23.31386114,1215.7,1215.6,0.2720044]
[1672715585508,28.31386114,1215.7,1215.6,0.2720044]
[1672715590315,61.96059496,1215.7,1215.6,0.2720044]
[1672715592285,53.73488496,1215.7,1215.6,0.2720044]
[1672715592704,45.50917496,1215.7,1215.6,0.2720044]
[1672715593172,38.36457114,1215.7,1215.6,0.2720044]
[1672715596508,33.36457114,1215.7,1215.6,0.2720044]
[1672715597367,38.36457114,1215.7,1215.6,0.2720044]
[1672715598746,36.53957114,1215.7,1215.6,0.2720044]
[1672715601934,36.53957114,1215.7,1215.6,0.26846785]
[1672715603464,31.53957114,1215.7,1215.6,0.26846785]
[1672715604305,36.53957114,1215.7,1215.6,0.26846785]
[1672715610428,31.53957114,1215.7,1215.6,0.26846785]
[1672715611514,36.53957114,1215.7,1215.6,0.26846785]
[1672715615036,44.76528114,1215.7,1215.6,0.26846785]
[1672715616858,52.99099114,1215.7,1215.6,0.26846785]
[1672715617359,47.99099114,1215.7,1215.6,0.26846785]
[1672715617569,46.90988496,1215.7,1215.6,0.26846785]
[1672715617786,51.90988496,1215.7,1215.6,0.26846785]
[1672715618436,53.74788496,1215.7,1215.6,0.26846785]
[1672715618833,61.97359496,1215.7,1215.6,0.26846785]
[1672715619250,42.74788496,1215.7,1215.6,0.26846785]
[1672715622311,35.60328114,1215.7,1215.6,0.26846785]
[1672715622685,42.74788496,1215.7,1215.6,0.26846785]
[1672715623613,42.74788496,1215.7,1215.6,0.26599583]
[1672715624430,50.97359496,1215.7,1215.6,0.26599583]
[1672715624642,46.28479114,1215.7,1215.6,0.26599583]
[1672715624974,53.4262779,1215.7,1215.6,0.26599583]
[1672715625792,46.28479114,1215.7,1215.6,0.26599583]
[1672715626001,53.42448514,1215.7,1215.6,0.26599583]
[1672715627194,46.28479114,1215.7,1215.6,0.26599583]
[1672715627388,53.42422449,1215.7,1215.6,0.26599583]
[1672715628242,88.42422449,1215.7,1215.6,0.26599583]
[1672715628463,86.58622449,1215.7,1215.6,0.26599583]
[1672715631348,87.08065295,1215.7,1215.6,0.00099583]
[1672715631561,79.9412196,1215.7,1215.6,0.00099583]
[1672715633371,4.935,1215.5,1215.3,0.098]
[1672715633699,9.935,1215.3,1215.1,9.1861]
[1672715633906,10.26270248,1215.2,1215.1,9.2841]
[1672715634562,10.26270248,1215.2,1215.1,0.098]
[1672715634730,15.26270248,1215.2,1215.0,1.83]
[1672715634955,9.24161155,1215.1,1215.0,1.83]
[1672715635164,9.24161155,1215.1,1215.0,10.06045]
[1672715635374,9.47161155,1215.1,1215.0,10.15845]
[1672715635808,14.47161155,1215.1,1215.0,10.15845]
[1672715636868,14.46796681,1215.1,1215.0,10.15845]
[1672715637322,9.3752164,1215.1,1215.0,10.15845]
[1672715637674,14.46796681,1215.1,1215.0,10.15845]
[1672715637879,9.3752164,1215.1,1215.0,10.15845]
[1672715638146,9.3752164,1215.1,1215.0,10.43459627]
[1672715638574,14.46796681,1215.1,1215.0,10.43459627]
[1672715638885,9.3752164,1215.1,1215.0,10.43459627]
[1672715642032,4.3752164,1215.1,1215.0,18.66504627]
[1672715643237,13.68363662,1215.1,1215.0,18.66504627]
[1672715648602,13.68363662,1215.1,1215.0,16.83504627]
[1672715649244,8.68363662,1215.1,1215.0,16.83504627]
[1672715650240,13.68363662,1215.1,1215.0,16.83504627]
[1672715652678,13.68363662,1215.1,1215.0,25.06549627]
[1672715654070,9.3752164,1215.1,1215.0,25.06549627]
[1672715656078,14.46796681,1215.1,1215.0,25.06549627]
[1672715656385,9.46796681,1215.1,1215.0,25.06549627]
[1672715656745,4.3752164,1215.1,1215.0,25.06549627]
[1672715657227,9.3752164,1215.1,1215.0,25.06549627]
[1672715657413,13.68746092,1215.1,1215.0,25.06549627]
[1672715658277,13.68839922,1215.1,1215.0,26.90349627]
[1672715658594,9.3752164,1215.1,1215.0,26.90349627]
[1672715658964,9.3752164,1215.1,1215.0,26.9006905]
[1672715659172,13.68842061,1215.1,1215.0,26.9006905]
[1672715659716,13.68864034,1215.1,1215.0,26.9006905]
[1672715659920,9.3752164,1215.1,1215.0,26.9006905]
[1672715661604,14.46796681,1215.1,1215.0,25.0626905]
[1672715661953,9.3752164,1215.1,1215.0,25.0626905]
[1672715662166,14.46796681,1215.1,1215.0,25.0626905]
[1672715666173,9.46796681,1215.1,1215.0,25.0626905]
[1672715666993,4.3752164,1215.1,1215.0,25.0626905]
[1672715667203,4.3752164,1215.1,1215.0,0.37414627]
[1672715667204,9.9933164,1215.1,1215.0,0.37414627]
[1672715667530,23.1580864,1215.1,1215.0,0.27614627]
[1672715667744,17.9283164,1215.1,1215.0,0.27614627]
[1672715668135,26.1580864,1215.1,1215.0,0.27614627]
[1672715669177,17.9283164,1215.1,1215.0,0.27614627]
[1672715672200,24.04205116,1215.1,1215.0,0.27614627]
[1672715672458,26.1580864,1215.1,1215.0,0.27614627]
[1672715674734,24.04050269,1215.1,1215.0,0.27614627]
[1672715675671,24.04050269,1215.1,1215.0,8.50659627]
[1672715675877,17.0802164,1215.1,1215.0,8.60459627]
[1672715676145,22.17412414,1215.1,1215.0,8.60459627]
[1672715677775,22.40412414,1215.1,1215.0,8.60459627]
[1672715682951,23.02222414,1215.1,1215.0,8.60459627]
[1672715683298,23.02222414,1215.1,1215.0,16.83504627]
[1672715683640,22.40412414,1215.1,1215.0,16.83504627]
[1672715684009,22.40412414,1215.1,1215.0,16.8317093]
[1672715684219,17.3102164,1215.1,1215.0,16.8317093]
[1672715684430,17.40396204,1215.1,1215.0,16.8317093]
[1672715684635,12.46896204,1215.1,1215.0,16.8317093]
[1672715685590,17.46896204,1215.1,1215.0,16.8317093]
[1672715691361,12.46896204,1215.1,1215.0,16.8317093]
[1672715692429,17.46896204,1215.1,1215.0,16.8317093]
[1672715694055,14.46896204,1215.1,1215.0,16.8317093]
[1672715697266,9.54372519,1215.1,1215.0,21.35805123]
[1672715697473,9.54372519,1215.1,1215.0,29.58850123]
[1672715697797,3.15524519,1215.1,1215.0,39.65495123]
[1672715698192,3.15524519,1215.1,1215.0,31.42450123]
[1672715699776,8.15524519,1215.1,1215.0,31.42450123]
[1672715704308,8.38524519,1215.1,1215.0,14.96360123]
[1672715704545,8.38524519,1215.1,1215.0,6.73315123]
[1672715704807,8.38524519,1215.1,1215.0,4.0448093]
[1672715705021,3.38524519,1215.1,1215.0,3.9468093]
[1672715705268,8.38524519,1215.1,1215.0,3.9468093]
[1672715707469,5.23,1215.1,1215.0,3.9468093]
[1672715708002,10.32374564,1215.1,1215.0,10.3392593]
[1672715708238,5.23,1215.1,1215.0,2.2068093]
[1672715708388,10.32374564,1215.1,1215.0,2.1088093]
[1672715708603,10.32374564,1215.1,1215.0,0.2728093]
[1672715709078,5.23,1215.1,1215.0,0.2728093]
[1672715709440,5.23,1215.1,1215.0,8.5032593]
[1672715709673,10.32374564,1215.1,1215.0,8.6012593]
[1672715709985,10.32374564,1215.1,1215.0,0.3708093]
[1672715710338,10.32374564,1215.1,1215.0,0.2728093]
[1672715712022,10.32374564,1215.1,1215.0,8.5032593]
[1672715712241,10.32374564,1215.1,1215.0,8.6012593]
[1672715714497,5.23,1215.1,1215.0,8.6012593]
[1672715714709,5.23,1215.1,1215.0,11.29132023]
[1672715715039,10.32793926,1215.1,1215.0,11.29132023]
[1672715716305,10.32793926,1215.1,1215.0,19.52177023]
[1672715716710,10.32793926,1215.1,1215.0,11.29132023]
[1672715717717,10.32793926,1215.1,1215.0,19.52177023]
[1672715718748,10.32793926,1215.1,1215.0,11.29132023]
[1672715718933,5.32793926,1215.1,1215.0,11.29132023]
[1672715719564,10.32793926,1215.1,1215.0,11.29132023]
[1672715720864,10.32793926,1215.1,1215.0,11.28875466]
[1672715722330,9.5465944,1215.1,1215.0,27.74965466]
[1672715722760,9.54652548,1215.1,1215.0,27.74965466]
[1672715728709,4.54652548,1215.1,1215.0,27.74965466]
[1672715729801,9.54652548,1215.1,1215.0,27.74965466]
[1672715731683,9.54499333,1215.1,1215.0,27.74965466]
[1672715735021,5.23,1215.1,1215.0,27.74965466]
[1672715735908,9.54562067,1215.1,1215.0,27.74965466]
[1672715738102,5.23,1215.1,1215.0,27.74965466]
[1672715739099,5.32793926,1215.1,1215.0,27.74965466]
[1672715739375,10.32793926,1215.1,1215.0,27.74965466]
[1672715742671,10.32793926,1215.1,1215.0,19.51920466]
[1672715743530,22.26404743,1215.1,1215.0,0.36824373]
[1672715743754,22.26404743,1215.1,1215.0,0.27024373]
[1672715743755,22.88736933,1215.1,1215.0,0.27024373]
[1672715744097,22.88736762,1215.1,1215.0,0.27024373]
[1672715744670,16.76996114,1215.1,1215.0,0.27024373]
[1672715745153,22.88733135,1215.1,1215.0,0.26627509]
[1672715751180,17.88733135,1215.1,1215.0,0.26627509]
[1672715752195,22.88733135,1215.1,1215.0,0.26627509]
[1672715756920,22.26923135,1215.1,1215.0,0.26627509]
[1672715758179,17.26923135,1215.1,1215.0,0.26627509]
[1672715758364,11.15186114,1215.1,1215.0,0.26627509]
[1672715758851,17.26923135,1215.1,1215.0,0.26627509]
[1672715759008,22.26923135,1215.1,1215.0,0.26627509]
[1672715761209,16.15186114,1215.1,1215.0,0.26627509]
[1672715761840,22.26923135,1215.1,1215.0,0.26627509]
[1672715763857,16.15186114,1215.1,1215.0,0.26627509]
[1672715764062,22.26923135,1215.1,1215.0,0.26627509]
[1672715764997,17.26923135,1215.1,1215.0,0.26627509]
[1672715765733,17.26923135,1215.1,1215.0,0.26382524]
[1672715766209,22.26923135,1215.1,1215.0,0.26382524]
[1672715771266,21.24286896,1215.1,1215.0,0.26382524]
[1672715771642,21.24286896,1215.1,1215.0,24.95517524]
[1672715771844,21.24286896,1215.1,1215.0,25.05317524]
[1672715772470,21.24286896,1215.1,1215.0,16.82272524]
[1672715772786,21.24286896,1215.1,1215.0,8.59227524]
[1672715772952,9.31075503,1215.1,1215.0,11.09762376]
[1672715773215,9.31065548,1215.1,1215.0,19.32807376]
[1672715773425,5.0,1215.1,1215.0,19.32807376]
[1672715775218,9.31119985,1215.1,1215.0,19.32807376]
[1672715775447,9.54119985,1215.1,1215.0,19.32807376]
[1672715775863,5.23,1215.1,1215.0,19.32807376]
[1672715776531,10.32100782,1215.1,1215.0,11.09762376]
[1672715777332,10.32100782,1215.1,1215.0,19.32807376]
[1672715777539,10.32100782,1215.1,1215.0,11.09762376]
[1672715778834,10.32100782,1215.1,1215.0,19.32807376]
[1672715779079,10.32100782,1215.1,1215.0,11.09762376]
[1672715779236,10.32100782,1215.1,1215.0,19.32807376]
[1672715779448,10.32100782,1215.1,1215.0,11.09762376]
[1672715779662,10.32100782,1215.1,1215.0,19.32807376]
[1672715779872,10.32300782,1215.1,1215.0,19.32507376]
[1672715780113,10.32100782,1215.1,1215.0,19.32807376]
[1672715780271,10.32100782,1215.1,1215.0,11.09762376]
[1672715780486,10.32100782,1215.1,1215.0,19.32807376]
[1672715781145,10.32100782,1215.1,1215.0,27.55852376]
[1672715781514,10.32100782,1215.1,1215.0,19.32807376]
[1672715782317,10.32100782,1215.1,1215.0,11.09762376]
[1672715783044,5.32100782,1215.1,1215.0,11.09762376]
[1672715783831,10.32100782,1215.1,1215.0,11.09762376]
[1672715784041,5.23,1215.1,1215.0,11.09762376]
[1672715784309,11.34737021,1215.1,1215.0,11.09762376]
[1672715784521,11.34737021,1215.1,1215.0,19.32807376]
[1672715785990,11.34737021,1215.1,1215.0,8.59227524]
[1672715786415,11.34737021,1215.1,1215.0,16.82272524]
[1672715786562,11.34737021,1215.1,1215.0,16.82006881]
[1672715786777,5.23,1215.1,1215.0,16.82006881]
[1672715787782,11.34737021,1215.1,1215.0,16.82006881]
[1672715788093,5.23,1215.1,1215.0,16.82006881]
[1672715788664,5.23,1215.1,1215.0,8.58961881]
[1672715788871,15.49623135,1215.1,1215.0,0.35916881]
[1672715789113,15.49623135,1215.1,1215.0,0.26116881]
[1672715789407,15.49623135,1215.1,1215.0,8.49161881]
[1672715789617,15.49623135,1215.1,1215.0,8.58961881]
[1672715791102,15.49623135,1215.1,1215.0,0.35916881]
[1672715791314,15.49623135,1215.1,1215.0,0.26116881]
[1672715792114,10.49623135,1215.1,1215.0,0.26116881]
[1672715792825,15.49623135,1215.1,1215.0,0.26116881]
[1672715793387,20.43123135,1215.1,1214.8,16.83012256]
[1672715793686,20.43123135,1215.1,1214.8,25.06161256]
[1672715793687,4.31458443,1214.9,1214.8,25.06161256]
[1672715794047,4.54458443,1214.9,1214.8,25.06161256]
[1672715794887,9.54458443,1214.9,1214.8,25.06161256]
[1672715799850,9.54458443,1214.9,1214.8,28.65011382]
[1672715803565,9.54458443,1214.9,1214.8,30.48811382]
[1672715804984,9.31458443,1214.9,1214.8,30.48811382]
[1672715809527,4.31458443,1214.9,1214.8,30.48811382]
[1672715809856,4.31458443,1214.9,1214.8,30.48479096]
[1672715810671,9.31458443,1214.9,1214.8,30.48479096]
[1672715813575,5.0,1214.9,1214.8,30.48479096]
[1672715818799,4.38058443,1215.0,1214.8,30.48479096]
[1672715819008,4.31458443,1215.0,1214.8,30.48479096]
[1672715819538,5.0,1214.9,1214.8,30.48479096]
[1672715825737,4.38058443,1215.0,1214.8,30.48479096]
[1672715825953,4.31458443,1215.0,1214.8,30.48479096]
[1672715826633,5.0,1214.9,1214.8,30.48479096]
[1672715828722,5.0,1214.9,1214.8,32.30779096]
[1672715831122,5.0,1214.9,1214.8,32.30547895]
[1672715834836,4.38058443,1215.0,1214.8,32.30547895]
[1672715835112,5.0,1214.9,1214.8,30.46747895]
[1672715836378,4.38058443,1215.0,1214.8,30.46747895]
[1672715836379,4.38058443,1215.0,1214.8,41.65741113]
[1672715836591,4.37658443,1215.1,1214.9,16.90080968]
[1672715836897,5.09660286,1215.2,1215.0,37.67374854]
[1672715836898,4.38058443,1215.2,1215.0,37.67374854]
[1672715837107,4.99858443,1215.3,1215.1,29.68931]
[1672715837275,4.93258443,1215.3,1215.1,34.53925854]
[1672715837466,4.93258443,1215.3,1215.1,34.06428085]
[1672715837677,4.31458443,1215.3,1215.1,34.06428085]
[1672715838367,5.0,1215.2,1215.1,40.64922939]
[1672715838690,5.0,1215.2,1215.1,35.89728085]
[1672715844404,4.38058443,1215.3,1215.1,35.89728085]
[1672715844637,4.31458443,1215.3,1215.1,30.89728085]
[1672715845534,5.0,1215.2,1215.1,30.89728085]
[1672715851389,4.38058443,1215.3,1215.1,30.89728085]
[1672715851596,4.31458443,1215.3,1215.1,30.89728085]
[1672715851812,11.95148443,1215.4,1215.1,30.89728085]
[1672715852026,11.88548443,1215.4,1215.1,30.89728085]
[1672715852595,5.0,1215.2,1215.1,30.89728085]
[1672715852939,4.95,1215.2,1215.1,30.89728085]
[1672715853642,4.95,1215.2,1215.1,29.06428085]
[1672715859739,4.94620669,1215.2,1215.1,29.06428085]
[1672715862001,4.94620669,1215.2,1215.1,29.47587308]
[1672715863040,0.066,1215.3,1215.1,29.47587308]
[1672715863288,11.88548443,1215.4,1215.1,29.47587308]
[1672715864142,5.0,1215.2,1215.1,29.47587308]
[1672715869057,5.0,1215.2,1215.1,29.06428085]
[1672715874619,9.31458443,1215.2,1215.1,29.06428085]
[1672715875392,5.0,1215.2,1215.1,29.06428085]
[1672715876196,9.31458443,1215.2,1215.1,29.06428085]
[1672715879097,4.31458443,1215.2,1215.1,29.06428085]
[1672715879551,4.38058443,1215.3,1215.1,29.06428085]
[1672715879763,4.31458443,1215.3,1215.1,29.06428085]
[1672715879969,4.31458443,1215.2,1215.1,29.06428085]
[1672715880218,5.0,1215.2,1215.1,29.06428085]
[1672715883559,5.0,1215.2,1215.1,29.06201632]
[1672715886193,4.38058443,1215.3,1215.1,29.06201632]
[1672715886401,4.31458443,1215.3,1215.1,29.06201632]
[1672715887023,4.31458443,1215.2,1215.1,29.06201632]
[1672715887238,9.31458443,1215.2,1215.1,29.06201632]
[1672715889531,9.31458443,1215.2,1215.1,24.78504547]
[1672715896132,4.31458443,1215.2,1215.1,24.78504547]
[1672715898053,9.31458443,1215.2,1215.1,24.78504547]
[1672715898193,9.31458443,1215.2,1215.1,25.03679219]
[1672715903999,4.31458443,1215.2,1215.1,25.03679219]
[1672715904192,9.31458443,1215.2,1215.1,28.36351641]
[1672715905935,5.0,1215.2,1215.1,28.36351641]
[1672715906261,5.0,1215.2,1215.1,28.36024374]
[1672715907932,9.31458443,1215.2,1215.1,28.36024374]
[1672715910976,5.0,1215.2,1215.1,28.36024374]
[1672715911137,9.31458443,1215.2,1215.1,28.36024374]
[1672715912981,5.0,1215.2,1215.1,28.36024374]
[1672715915927,9.31458443,1215.2,1215.1,28.36024374]
[1672715916287,4.31458443,1215.2,1215.1,28.36024374]
[1672715916849,4.38058443,1215.3,1215.1,28.36024374]
[1672715917040,4.31458443,1215.3,1215.1,28.36024374]
[1672715917233,5.0,1215.2,1215.1,28.36024374]
[1672715917919,5.002,1215.2,1215.1,28.35724374]
[1672715918089,5.0,1215.2,1215.1,28.36024374]
[1672715925075,5.0,1215.2,1215.1,28.77497158]
[1672715926511,5.0,1215.2,1215.1,28.36024374]
[1672715926723,4.38058443,1215.3,1215.1,28.36024374]
[1672715926954,4.31458443,1215.3,1215.1,28.36024374]
[1672715927771,5.0,1215.2,1215.1,28.36024374]
[1672715930382,5.0,1215.2,1215.1,28.3562642]
[1672715937108,5.0,1215.2,1215.1,28.77453949]
[1672715939859,4.38058443,1215.3,1215.1,28.77453949]
[1672715940069,4.31458443,1215.3,1215.1,28.77453949]